fUST/lending_fUST_20240215
["ID","MTS","AMOUNT","RATE_DAILY","PERIOD"]
[314123732,1708007449547,-500.0,0.0003589,14]
[314123733,1708007449557,-500.0,0.0003589,14]
[314123734,1708007449567,-552.62557982,0.0003589,14]
[314123735,1708007449577,-500.0,0.0003589,14]
[314123736,1708007449587,-500.0,0.0003589,14]
[314123737,1708007449596,-500.0,0.0003589,14]
[314123738,1708007449606,-500.0,0.0003589,14]
[314123739,1708007449615,-500.0,0.0003589,14]
[314123740,1708007449625,-500.0,0.0003589,14]
[314123741,1708007449634,-914.43,0.0003589,14]
[314123742,1708007449643,-500.0,0.0003589,14]
[314123743,1708007449652,-500.0,0.0003589,14]
[314123744,1708007449662,-500.0,0.0003589,14]
[314123745,1708007449671,-511.87142877,0.0003589,14]
[314123746,1708007449681,-324.36232013,0.0003589,14]
[314123747,1708007449690,-500.0,0.0003589,14]
[314123748,1708007449765,-500.0,0.0003589,14]
[314123749,1708007449776,-2539.94,0.0003589,14]
[314123750,1708007449785,-500.0,0.0003589,14]
[314123751,1708007449794,-1182.7,0.0003589,14]
[314123752,1708007449804,-500.0,0.0003589,14]
[314123753,1708007449812,-2079.61,0.0003589,14]
[314123754,1708007449822,-567.78,0.0003589,14]
[314123755,1708007449830,-504.93594715,0.0003589,14]
[314123756,1708007449839,-500.0,0.0003589,14]
[314123757,1708007449848,-186.15790287,0.0003589,2]
[314123758,1708007449862,-500.0,0.0003589,14]
[314123759,1708007449871,-500.49656635,0.0003589,14]
[314123760,1708007449881,-531.52,0.0003589,14]
[314123761,1708007449890,-500.0,0.0003589,14]
[314123762,1708007449899,-500.0,0.0003589,2]
[314123763,1708007449908,-500.0,0.0003589,14]
[314123764,1708007449918,-514.74520336,0.0003589,14]
[314123765,1708007449926,-500.0,0.0003589,14]
[314123766,1708007449937,-500.0,0.0003589,14]
[314123767,1708007449946,-1718.04,0.0003589,7]
[314123768,1708007449955,-500.0,0.0003589,14]
[314123769,1708007449963,-685.81,0.0003589,14]
[314123770,1708007449972,-298.23799398,0.0003589,14]
[314123771,1708007449981,-505.81901091,0.0003589,14]
[314123772,1708007449990,-500.0,0.0003589,14]
[314123773,1708007450000,-500.0,0.0003589,14]
[314123774,1708007450009,-500.0,0.0003589,14]
[314123775,1708007450019,-500.0,0.0003589,14]
[314123776,1708007450028,-500.0,0.0003589,14]
[314123777,1708007450038,-500.0,0.0003589,14]
[314123778,1708007450047,-500.0,0.0003589,14]
[314123779,1708007450057,-1077.55,0.0003589,14]
[314123780,1708007450066,-302.14032212,0.0003589,14]
[314123781,1708007450076,-508.31864638,0.0003589,14]
[314123782,1708007450085,-515.89470802,0.0003589,14]
[314123783,1708007450094,-500.0,0.0003589,7]
[314123784,1708007450103,-500.0,0.0003589,14]
[314123785,1708007450113,-500.0,0.0003589,14]
[314123786,1708007450122,-513.19535583,0.0003589,14]
[314123787,1708007450131,-500.0,0.0003589,14]
[314123788,1708007450140,-689.31,0.0003589,14]
[314123789,1708007450150,-500.0,0.0003589,14]
[314123790,1708007450160,-500.0,0.0003589,14]
[314123791,1708007450171,-500.0,0.0003589,14]
[314123792,1708007450180,-500.0,0.0003589,14]
[314123793,1708007450190,-500.0,0.0003589,14]
[314123794,1708007450199,-771.85,0.0003589,14]
[314123795,1708007450208,-575.15,0.0003589,14]
[314123796,1708007450217,-13892.43,0.0003589,14]
[314123797,1708007450227,-1722.49,0.0003589,14]
[314123798,1708007450236,-500.0,0.0003589,14]
[314123799,1708007450244,-336.43783872,0.0003589,14]
[314123800,1708007450253,-500.0,0.0003589,14]
[314123801,1708007450263,-16326.51,0.0003589,14]
[314123802,1708007450273,-500.0,0.0003589,14]
[314123803,1708007450282,-500.0,0.0003589,14]
[314123804,1708007450292,-561.49,0.0003589,14]
[314123805,1708007450302,-500.0,0.0003589,14]
[314123806,1708007450312,-650.34,0.0003589,14]
[314123807,1708007450321,-500.0,0.0003589,14]
[314123808,1708007450331,-500.0,0.0003589,2]
[314123809,1708007450341,-500.0,0.0003589,14]
[314123810,1708007450351,-14545.94,0.0003589,14]
[314123811,1708007450360,-1252.73,0.0003589,14]
[314123812,1708007450369,-500.0,0.0003589,14]
[314123813,1708007450378,-500.0,0.0003589,14]
[314123814,1708007450387,-500.0,0.0003589,14]
[314123815,1708007450396,-764.35,0.0003589,14]
[314123816,1708007450406,-7363.77,0.0003589,14]
[314123817,1708007450415,-5012.08,0.0003589,14]
[314123818,1708007450424,-500.0,0.0003589,14]
[314123819,1708007450433,-1464.93,0.0003589,14]
[314123820,1708007450442,-9472.34,0.0003589,14]
[314123821,1708007450451,-2007.27,0.0003589,14]
[314123822,1708007450461,-2136.93,0.0003589,14]
[314123823,1708007450470,-2764.98,0.0003589,14]
[314123824,1708007450480,-1173.67,0.0003589,14]
[314123825,1708007450489,-500.0,0.0003589,14]
[314123826,1708007450499,-14222.3,0.0003589,14]
[314123827,1708007450508,-500.0,0.0003589,14]
[314123828,1708007450517,-1270.5,0.0003589,14]
[314123829,1708007450526,-1189.1,0.0003589,14]
[314123830,1708007450536,-879.81,0.0003589,14]
[314123831,1708007450545,-815.49,0.0003589,14]
[314123832,1708007450554,-500.0,0.0003589,14]
[314123833,1708007450564,-1934.47,0.0003589,14]
[314123834,1708007450573,-500.0,0.0003589,14]
[314123835,1708007450582,-500.0,0.0003589,14]
[314123836,1708007450592,-500.0,0.0003589,14]
[314123837,1708007450601,-1891.64,0.0003589,14]
[314123838,1708007450611,-500.0,0.0003589,14]
[314123839,1708007450620,-500.0,0.0003589,14]
[314123840,1708007450629,-500.0,0.0003589,14]
[314123841,1708007450639,-500.0,0.0003589,14]
[314123842,1708007450649,-500.0,0.0003589,14]
[314123843,1708007450658,-14257.33,0.0003589,14]
[314123844,1708007450669,-1999.91,0.0003589,2]
[314123845,1708007450678,-638.0,0.00035901,2]
[314123846,1708007450687,-231.02,0.00035917,7]
[314123847,1708007450696,-154.013858,0.00035917,7]
[314123848,1708007450705,-154.013858,0.00035917,7]
[314123849,1708007450714,-154.013858,0.00035917,7]
[314123850,1708007450723,-154.013858,0.00035917,7]
[314123851,1708007450733,-166.13562261,0.00035917,7]
[314123852,1708007450742,-2060.81403142,0.00035921,2]
[314123853,1708007450751,-176.97930129,0.00035927,7]
[314123854,1708007450760,-176.97930129,0.00035927,7]
[314123855,1708007450770,-176.97,0.00035927,7]
[314123856,1708007450779,-151.69654396,0.00035927,7]
[314123857,1708007450788,-151.69654396,0.00035927,7]
[314123858,1708007450797,-151.69654396,0.00035927,7]
[314123859,1708007450806,-151.69654396,0.00035927,7]
[314123860,1708007450816,-151.69654396,0.00035927,7]
[314123861,1708007450825,-151.69654396,0.00035927,7]
[314123862,1708007450834,-151.69654396,0.00035927,7]
[314123863,1708007450843,-151.69654396,0.00035927,7]
[314123864,1708007450854,-151.69654396,0.00035927,7]
[314123865,1708007450863,-151.69654396,0.00035927,7]
[314123866,1708007450873,-155.0,0.00035986,2]
[314123867,1708007450883,-2504.0,0.00036,7]
[314123868,1708007450893,-1122.83432504,0.00036,3]
[314123869,1708007450902,-1000.0,0.00036,36]
[314123870,1708007450912,-1209.75389,0.00036,8]
[314123871,1708007450922,-500.0,0.00036016,15]
[314123872,1708007450933,-500.0,0.00036016,15]
[314123873,1708007450942,-316.74828684,0.00036016,15]
[314123874,1708007450952,-500.0,0.00036016,15]
[314123875,1708007450963,-500.0,0.00036016,15]
[314123876,1708007450973,-500.0,0.00036016,15]
[314123877,1708007450983,-329.97580471,0.00036016,15]
[314123878,1708007450992,-241.14801073,0.00036016,15]
[314123879,1708007451001,-500.0,0.00036016,15]
[314123880,1708007451010,-627.57926271,0.00036016,15]
[314123881,1708007451019,-500.0,0.00036016,15]
[314123882,1708007451029,-500.0,0.00036016,15]
[314123883,1708007451039,-500.0,0.00036016,15]
[314123884,1708007451049,-500.0,0.00036016,15]
[314123885,1708007451059,-212.1004177,0.00036016,15]
[314123886,1708007451069,-500.0,0.00036016,15]
[314123887,1708007451078,-500.0,0.00036016,15]
[314123888,1708007451088,-215633.97694543,0.00036017,2]
[314123889,1708007451098,-1000.0,0.0003602,8]
[314123890,1708007451107,-500.0,0.00036027,14]
[314123891,1708007451117,-500.0,0.00036027,2]
[314123892,1708007451126,-500.0,0.00036027,14]
[314123893,1708007451136,-615.53573992,0.00036027,14]
[314123894,1708007451145,-358.86505911,0.00036027,14]
[314123895,1708007451154,-500.0,0.00036027,14]
[314123896,1708007451164,-500.0,0.00036027,14]
[314123897,1708007451237,-500.0,0.00036027,14]
[314123898,1708007451246,-500.0,0.00036027,14]
[314123899,1708007451255,-914.43,0.00036027,14]
[314123900,1708007451265,-366.70770571,0.00036027,14]
[314123901,1708007451275,-323.48886372,0.00036027,14]
[314123902,1708007451284,-540.53709955,0.00036027,14]
[314123903,1708007451294,-500.0,0.00036027,14]
[314123904,1708007451304,-500.0,0.00036027,14]
[314123905,1708007451314,-2539.94,0.00036027,14]
[314123906,1708007451324,-500.0,0.00036027,14]
[314123907,1708007451334,-1182.7,0.00036027,14]
[314123908,1708007451345,-577.13712796,0.00036027,14]
[314123909,1708007451354,-2079.61,0.00036027,14]
[314123910,1708007451364,-567.78,0.00036027,14]
[314123911,1708007451373,-500.0,0.00036027,14]
[314123912,1708007451383,-524.53748211,0.00036027,14]
[314123913,1708007451392,-531.52,0.00036027,14]
[314123914,1708007451401,-500.0,0.00036027,14]
[314123915,1708007451411,-500.0,0.00036027,2]
[314123916,1708007451422,-500.0,0.00036027,14]
[314123917,1708007451431,-505.95793256,0.00036027,14]
[314123918,1708007451441,-500.0,0.00036027,14]
[314123919,1708007451451,-1718.04,0.00036027,7]
[314123920,1708007451460,-500.0,0.00036027,14]
[314123921,1708007451470,-685.81,0.00036027,14]
[314123922,1708007451479,-500.0,0.00036027,14]
[314123923,1708007451488,-511.11603172,0.00036027,14]
[314123924,1708007451498,-500.0,0.00036027,14]
[314123925,1708007451507,-500.0,0.00036027,14]
[314123926,1708007451516,-500.0,0.00036027,14]
[314123927,1708007451525,-500.0,0.00036027,14]
[314123928,1708007451534,-500.0,0.00036027,14]
[314123929,1708007451543,-1077.55,0.00036027,14]
[314123930,1708007451552,-500.0,0.00036027,7]
[314123931,1708007451560,-500.0,0.00036027,14]
[314123932,1708007451570,-500.0,0.00036027,14]
[314123933,1708007451579,-500.0,0.00036027,14]
[314123934,1708007451589,-689.31,0.00036027,14]
[314123935,1708007451599,-500.0,0.00036027,14]
[314123936,1708007451609,-500.0,0.00036027,14]
[314123937,1708007451618,-500.0,0.00036027,14]
[314123938,1708007451627,-500.0,0.00036027,14]
[314123939,1708007451637,-771.85,0.00036027,14]
[314123940,1708007451647,-575.15,0.00036027,14]
[314123941,1708007451656,-13892.43,0.00036027,14]
[314123942,1708007451666,-1722.49,0.00036027,14]
[314123943,1708007451676,-500.0,0.00036027,14]
[314123944,1708007451686,-647.88090187,0.00036027,14]
[314123945,1708007451695,-16326.51,0.00036027,14]
[314123946,1708007451706,-500.0,0.00036027,14]
[314123947,1708007451715,-500.0,0.00036027,14]
[314123948,1708007451725,-561.49,0.00036027,14]
[314123949,1708007451734,-650.34,0.00036027,14]
[314123950,1708007451744,-619.40888932,0.00036027,14]
[314123951,1708007451754,-500.0,0.00036027,2]
[314123952,1708007451765,-500.0,0.00036027,14]
[314123953,1708007451774,-14545.94,0.00036027,14]
[314123954,1708007451784,-1252.73,0.00036027,14]
[314123955,1708007451794,-500.0,0.00036027,14]
[314123956,1708007451803,-500.0,0.00036027,14]
[314123957,1708007451813,-500.0,0.00036027,14]
[314123958,1708007451823,-764.35,0.00036027,14]
[314123959,1708007451832,-6606.42419322,0.00036027,14]
[314123960,1708007451942,-757.34580678,0.00036027,14]
[314123961,1708007451952,-5012.08,0.00036027,14]
[314123962,1708007451962,-550.42773751,0.00036027,14]
[314123963,1708007451972,-1464.93,0.00036027,14]
[314123964,1708007451981,-9255.54008761,0.00036027,14]
[314124069,1708008635262,-506.76749982,0.00026191,2]
[314124070,1708008635272,-164.22477025,0.000299,2]
[314124071,1708008635285,-1500.0,0.0003,2]
[314124072,1708008635296,-207.0,0.0003094,2]
[314124073,1708008635306,-613.19730743,0.0003094,2]
[314124209,1708008638156,-24286.80269257,0.0003094,2]
[314124211,1708008638165,-20326.2802493,0.00031843,2]
[314124214,1708008638186,-16473.573192,0.00031895,2]
[314124216,1708008638197,-169.747924,0.00031921,2]
[314124218,1708008638210,-381.1466175,0.00032102,2]
[314124220,1708008638219,-362.780993,0.0003212,2]
[314124222,1708008638229,-163.073598,0.00032266,2]
[314124223,1708008638239,-186.16413673,0.0003279,2]
[314124224,1708008638249,-246.31129522,0.0003289,2]
[314124225,1708008638259,-160.0,0.00033,2]
[314124226,1708008638268,-186.0,0.00033,2]
[314124227,1708008638279,-281.57470687,0.000332,2]
[314124228,1708008638288,-4439.98,0.00033279,3]
[314124229,1708008638298,-5327.98,0.00033289,3]
[314124230,1708008638307,-1543.24,0.00033299,2]
[314124231,1708008638316,-1543.24,0.00033299,2]
[314124232,1708008638326,-1543.25,0.00033299,2]
[314124233,1708008638335,-1543.24,0.00033299,2]
[314124234,1708008638345,-1543.24,0.00033299,2]
[314124236,1708008638354,-1543.24,0.00033299,2]
[314124238,1708008638364,-311.50590201,0.00033299,7]
[314124240,1708008638373,-364.48042604,0.00033299,7]
[314124241,1708008638383,-256.78059412,0.00033299,7]
[314124243,1708008638393,-173.32293807,0.00033299,7]
[314124245,1708008638403,-500.0,0.00033299,7]
[314124247,1708008638413,-157.38109014,0.00033299,7]
[314124249,1708008638422,-221.81971649,0.00033299,7]
[314124250,1708008638433,-152.7085308,0.00033299,7]
[314124252,1708008638442,-500.0,0.00033299,7]
[314124254,1708008638451,-453.72574457,0.00033299,7]
[314124256,1708008638460,-198.54790969,0.00033299,7]
[314124258,1708008638470,-1543.24,0.00033299,2]
[314124260,1708008638480,-1543.24,0.00033299,2]
[314124262,1708008638490,-1543.24,0.00033299,2]
[314124264,1708008638499,-250.0,0.00033299,2]
[314124267,1708008638509,-41890.47239537,0.000333,5]
[314124268,1708008638518,-35882.89799856,0.000333,5]
[314124271,1708008638531,-9963.97514836,0.000333,5]
[314124273,1708008638543,-6392.86087435,0.000333,5]
[314124275,1708008638555,-1001.52106523,0.000333,5]
[314124277,1708008638565,-13158.11770169,0.000333,5]
[314124278,1708008638574,-999.78830779,0.000333,4]
[314124285,1708008638703,-23239.38784609,0.000333,5]
[314124286,1708008638713,-155.0,0.00033321,2]
[314124287,1708008638722,-200.0,0.00033434,15]
[314124288,1708008638732,-281.57470684,0.00033505,2]
[314124289,1708008638741,-169.30228,0.0003356,2]
[314124290,1708008638750,-281.57470684,0.00033811,2]
[314124291,1708008638759,-883.88355192,0.00033917,2]
[314124292,1708008638768,-507.86011459,0.00033984,2]
[314124293,1708008638777,-281.57470684,0.00034116,2]
[314124294,1708008638786,-1833.30123004,0.00034321,2]
[314124295,1708008638795,-1543.24,0.00034361,2]
[314124296,1708008638805,-517569.84023476,0.00034362,2]
[314124297,1708008638814,-281.57470684,0.00034421,2]
[314124298,1708008638823,-160.0,0.00034521,2]
[314124299,1708008638832,-300.0,0.00034606,2]
[314124300,1708008638841,-155.0,0.00034691,2]
[314124301,1708008638850,-150.5,0.00034694,35]
[314124302,1708008638859,-150.76,0.00034694,35]
[314124303,1708008638868,-4067.0,0.00034694,35]
[314124304,1708008638878,-2143.0,0.00034694,35]
[314124305,1708008638888,-5319.0,0.00034694,35]
[314124306,1708008638897,-150.5,0.00034704,35]
[314124307,1708008638906,-150.5,0.00034704,35]
[314124308,1708008638915,-4067.0,0.00034704,35]
[314124309,1708008638925,-158.74,0.00034704,35]
[314124310,1708008638935,-5319.0,0.00034704,35]
[314124311,1708008638945,-2143.0,0.00034704,35]
[314124312,1708008638953,-150.57,0.00034714,35]
[314124313,1708008638962,-150.5,0.00034714,35]
[314124314,1708008638972,-150.59,0.00034714,35]
[314124315,1708008638982,-150.5,0.00034714,35]
[314124316,1708008638991,-150.5,0.00034714,35]
[314124317,1708008639000,-4067.0,0.00034714,35]
[314124318,1708008639009,-5319.0,0.00034714,35]
[314124319,1708008639018,-2143.0,0.00034714,35]
[314124320,1708008639028,-156.4,0.00034714,35]
[314124321,1708008639037,-150.68,0.00034714,35]
[314124322,1708008639046,-150.5,0.00034714,35]
[314124323,1708008639055,-150.91,0.00034714,35]
[314124324,1708008639065,-197.33585836,0.00034723,15]
[314124325,1708008639074,-318.8635782,0.00034723,15]
[314124326,1708008639083,-372.40126531,0.00034723,15]
[314124327,1708008639092,-500.0,0.00034723,15]
[314124328,1708008639101,-500.0,0.00034723,15]
[314124329,1708008639110,-500.0,0.00034723,15]
[314124330,1708008639119,-500.0,0.00034723,15]
[314124331,1708008639128,-500.0,0.00034723,15]
[314124332,1708008639137,-500.0,0.00034723,15]
[314124333,1708008639146,-530.40117152,0.00034723,15]
[314124334,1708008639155,-500.0,0.00034723,15]
[314124335,1708008639164,-272.55373934,0.00034723,15]
[314124336,1708008639174,-500.0,0.00034723,15]
[314124337,1708008639185,-500.0,0.00034723,15]
[314124338,1708008639198,-500.0,0.00034723,15]
[314124339,1708008639208,-500.0,0.00034723,15]
[314124340,1708008639217,-500.0,0.00034723,15]
[314124341,1708008639228,-500.0,0.00034723,15]
[314124342,1708008639237,-628.55951465,0.00034723,15]
[314124343,1708008639246,-296489.46287132,0.00034724,2]
[314124365,1708008642288,-160.0,0.00033,2]
[314124366,1708008642298,-3699.98,0.00033269,3]
[314124367,1708008642308,-161.0,0.00034521,2]
[314124368,1708008642318,-1500.0,0.00034704,35]
[314124369,1708008642327,-787.60781877,0.00034714,35]
[314124370,1708008642339,-712.39218123,0.00034714,35]
[314124371,1708008642349,-7550.80636865,0.00034724,2]
[314124372,1708008642361,-3789.9851844,0.00034724,2]
[314124373,1708008642372,-2960.96178046,0.00034724,2]
[314124374,1708008642383,-14546.19490133,0.00034724,2]
[314124375,1708008642395,-8935.05033873,0.00034724,2]
[314124376,1708008642406,-6878.52104769,0.00034724,2]
[314124377,1708008642418,-2826.58457409,0.00034724,2]
[314124378,1708008642442,-61854.08790667,0.00034724,2]
[314124379,1708008642454,-56186.0692655,0.00034724,2]
[314124380,1708008642465,-79563.47103105,0.00034724,2]
[314124381,1708008642476,-5762.78436086,0.00034724,2]
[314124382,1708008642488,-3606.27720025,0.00034724,2]
[314124383,1708008642500,-5260.0,0.00034724,2]
[314124769,1708008646458,-1500.0,0.00034694,35]
[314124771,1708008646468,-3500.54810474,0.00034724,2]
[314124800,1708008646738,-13571.35276272,0.00034724,2]
[314124836,1708008647065,-240581.65787092,0.00034724,2]
[314124838,1708008647076,-1358.57129314,0.00034724,2]
[314124840,1708008647088,-4130.44971644,0.00034724,2]
[314124842,1708008647100,-2311.73839589,0.00034724,2]
[314124845,1708008647111,-1804.91787208,0.00034724,2]
[314127228,1708009835211,-23688.52912426,0.00031092,2]
[314127230,1708009835225,-1211.47087574,0.00031092,2]
[314127232,1708009835234,-169.30228,0.00031146,2]
[314127234,1708009835243,-333.436017,0.0003142,2]
[314127236,1708009835252,-155.0,0.00031973,2]
[314127238,1708009835262,-171.2248221,0.00031998,2]
[314127240,1708009835272,-35347.59253936,0.00032,15]
[314127242,1708009835282,-883.88355192,0.00032624,2]
[314127244,1708009835292,-200.0,0.00032645,15]
[314127247,1708009835306,-1126.29882736,0.000329,2]
[314127249,1708009835316,-4388.1,0.00032963,3]
[314127251,1708009835325,-3656.75,0.00032963,3]
[314127253,1708009835335,-234.13,0.00032972,2]
[314127255,1708009835345,-234.13,0.00032972,2]
[314127257,1708009835354,-234.13,0.00032972,2]
[314127259,1708009835363,-234.13,0.00032972,2]
[314127261,1708009835373,-234.13,0.00032972,2]
[314127263,1708009835383,-234.13,0.00032972,2]
[314127265,1708009835393,-234.13,0.00032972,2]
[314127267,1708009835403,-234.13,0.00032972,2]
[314127269,1708009835414,-250.0,0.00032973,2]
[314127270,1708009835424,-17616.92810506,0.00032973,2]
[314127271,1708009835563,-4330.56634737,0.00032973,2]
[314127341,1708009838316,-856.59605858,0.00032973,2]
[314127342,1708009838381,-494765.74972376,0.00032973,2]
[314127343,1708009838392,-616.0,0.00033,2]
[314127344,1708009838402,-160.0,0.00033,2]
[314127345,1708009838412,-616.0,0.00033151,2]
[314127346,1708009838422,-234.16,0.00033216,2]
[314127347,1708009838432,-240581.65787091,0.00033217,2]
[314127348,1708009838442,-300.0,0.00033261,2]
[314127349,1708009838452,-1607.74274482,0.00033318,4]
[314127350,1708009838461,-42276.38808317,0.00033329,5]
[314127351,1708009838471,-12649.63119688,0.0003334,4]
[314127352,1708009838481,-5000.0,0.0003334,7]
[314127353,1708009838490,-3098.1297629,0.0003334,5]
[314127354,1708009838502,-155.0,0.00033343,2]
[314127355,1708009838512,-616.0,0.00033425,2]
[314127356,1708009838522,-2076.68966729,0.00033499,2]
[314127357,1708009838531,-300.0,0.00033549,2]
[314127358,1708009838542,-650.0,0.0003358,20]
[314127359,1708009838555,-650.0,0.0003358,26]
[314127360,1708009838566,-234.16,0.0003358,2]
[314127361,1708009838575,-500.0,0.0003358,7]
[314127362,1708009838586,-500.0,0.0003358,7]
[314127363,1708009838595,-318.8635782,0.0003358,7]
[314127364,1708009838605,-628.55951465,0.0003358,7]
[314127365,1708009838614,-500.0,0.0003358,7]
[314127366,1708009838625,-197.33585836,0.0003358,7]
[314127367,1708009838639,-500.0,0.0003358,7]
[314127368,1708009838649,-372.40126531,0.0003358,7]
[314127369,1708009838658,-500.0,0.0003358,7]
[314127370,1708009838667,-500.0,0.0003358,7]
[314127371,1708009838677,-272.55373934,0.0003358,7]
[314127372,1708009838687,-500.0,0.0003358,7]
[314127373,1708009838696,-530.40117152,0.0003358,7]
[314127374,1708009838706,-500.0,0.0003358,7]
[314127375,1708009838715,-500.0,0.0003358,7]
[314127376,1708009838726,-500.0,0.0003358,7]
[314127377,1708009838735,-500.0,0.0003358,7]
[314127378,1708009838745,-500.0,0.0003358,7]
[314127379,1708009838754,-500.0,0.0003358,7]
[314127380,1708009838764,-90029.40121666,0.00033581,2]
[314127397,1708009841603,-3047.29,0.00033571,3]
[314127398,1708009841612,-8362.6450032,0.00033581,2]
[314127399,1708009841629,-2782.19352297,0.00033581,2]
[314127414,1708009845804,-1816.27722283,0.00033581,2]
[314127415,1708009845816,-7499.34638883,0.00033581,2]
[314127461,1708009846550,-34753.74948797,0.00033581,2]
[314127463,1708009846564,-490.16024973,0.00033581,2]
[314127465,1708009846578,-952.42617288,0.00033581,2]
[314127659,1708010666976,157.738695,0.00030959,120]
[314127721,1708011032483,-155.0,0.00030481,2]
[314127723,1708011032492,-7724.75940282,0.00030761,2]
[314127989,1708011039470,-17175.24059718,0.00030761,2]
[314127990,1708011039480,-258.852318,0.00030882,2]
[314127991,1708011039490,-157.738695,0.00030959,2]
[314127992,1708011039501,-157.738695,0.00030959,8]
[314127993,1708011039510,-157.738695,0.00030959,15]
[314127994,1708011039521,-157.738695,0.00030959,21]
[314127995,1708011039531,-157.738695,0.00030959,28]
[314127996,1708011039541,-157.738695,0.00030959,34]
[314127997,1708011039552,-157.738695,0.00030959,41]
[314127998,1708011039562,-157.738695,0.00030959,47]
[314127999,1708011039572,-157.738695,0.00030959,54]
[314128000,1708011039581,-157.738695,0.00030959,61]
[314128001,1708011039591,-157.738695,0.00030959,67]
[314128002,1708011039602,-157.738695,0.00030959,74]
[314128003,1708011039612,-157.738695,0.00030959,80]
[314128004,1708011039622,-157.738695,0.00030959,87]
[314128005,1708011039632,-157.738695,0.00030959,93]
[314128006,1708011039641,-157.738695,0.00030959,100]
[314128007,1708011039653,-157.738695,0.00030959,106]
[314128008,1708011039663,-157.738695,0.00030959,113]
[314128009,1708011039673,-500.0,0.00031471,2]
[314128010,1708011039683,-500.0,0.00031481,2]
[314128011,1708011039693,-977.1919813,0.00031481,2]
[314128012,1708011039704,-155.0,0.00031851,2]
[314128013,1708011039719,-500.0,0.00031884,2]
[314128014,1708011039729,-168.599637,0.00031885,2]
[314128015,1708011039739,-200.0,0.00032077,15]
[314128016,1708011039751,-3034.77844554,0.00032122,2]
[314128017,1708011039760,-3034.77844554,0.00032863,2]
[314128018,1708011039887,-620.77973422,0.00032872,2]
[314128019,1708011039896,-400.37155416,0.00032877,2]
[314128020,1708011039906,-153.0,0.00032877,2]
[314128021,1708011039915,-200.230317,0.00032877,2]
[314128022,1708011039926,-200.230317,0.00032877,2]
[314128024,1708011039935,-153.0,0.00032877,2]
[314128025,1708011039945,-153.0,0.00032877,2]
[314128026,1708011039954,-397.5934704,0.00032877,2]
[314128027,1708011039967,-256.0,0.00033,2]
[314128028,1708011039976,-898.0,0.00033,2]
[314128029,1708011039986,-792.31320463,0.00033,2]
[314128030,1708011039995,-898.0,0.00033151,2]
[314128031,1708011040004,-153.0,0.00033156,2]
[314128032,1708011040013,-153.0,0.00033156,2]
[314128033,1708011040024,-200.230317,0.00033156,2]
[314128034,1708011040033,-153.0,0.00033156,2]
[314128035,1708011040043,-200.230317,0.00033156,2]
[314128036,1708011040053,-200.230317,0.00033178,2]
[314128037,1708011040062,-313.1663701,0.00033178,2]
[314128038,1708011040071,-155.0,0.00033221,2]
[314128039,1708011040081,-644.88353825,0.00033227,2]
[314128040,1708011040090,-4159.76,0.00033228,3]
[314128041,1708011040100,-3466.46,0.00033228,3]
[314128042,1708011040109,-2888.72,0.00033228,3]
[314128043,1708011040118,-644.88353822,0.00033232,2]
[314128044,1708011040128,-644.88353822,0.00033236,2]
[314128045,1708011040137,-37706.88791695,0.00033238,3]
[314128046,1708011040146,-644.88353822,0.00033241,2]
[314128047,1708011040155,-644.88353822,0.00033245,2]
[314128048,1708011040165,-200.0,0.00033245,2]
[314128049,1708011040174,-200.0,0.00033245,2]